[Event "2nd Serbia Open Masters 2022"]
[Site "Novi Sad"]
[Date "2022.07.02"]
[Round "5.52"]
[White "Mehmed, Elif"]
[Black "Damjanovic, Vuk"]
[Result "0-1"]
[ECO "B06"]
[WhiteElo "2220"]
[BlackElo "2393"]
[Annotator "TA"]
[PlyCount "94"]
[EventDate "2022.06.28"]
[EventType "swiss"]
[EventCountry "SRB"]
[SourceTitle "playchess.com"]
[Source "ChessBase"]
[SourceQuality "1"]
[TimeControl "40/5400+30:900+30"]

{[%evp 9,94,30,41,18,18,12,21,15,22,0,40,23,51,22,23,25,53,44,54,14,0,-41,-36,-51,-39,-26,-22,-91,-85,-163,-146,-161,-161,-148,-149,-404,-401,-385,-319,-308,-297,-379,-391,-496,-492,-478,-455,-427,-404,-485,-481,-462,-454,-495,-492,-466,-459,-596,-495,-481,-446,-437,-427,-29967,-29969,-29969,-29970,-29970,-29971,-29973,-29974,-29974,-29975,-29975,-29976,-29977,-29978,-29978,-29977,-29978,-29978,-29977,-29979,-29978,-29979,-29980,-29981]} 1. e4 {[%emt 0:00:04]} g6 {[%emt 0:02:19]} 2. d4 {[%emt 0:00:32]} Bg7 {[%emt 0:00:33]} 3. Nc3 {[%emt 0:00:14]} a6 {[%emt 0:02:31]} 4. Be3 {[%emt 0:04:13]} b5 {[%emt 0:01:12]} 5. a3 {[%emt 0:19:28]} d6 {[%emt 0:04:32]} 6. h4 {[%emt 0:02:39] B06: Modern Defence.} h5 {[%emt 0:10:37]} 7. Nh3 {[%emt 0:01:04] [#]} Bxh3 $146 {[%emt 0:09:05]} ({Predecessor:} 7... Nd7 8. Bd3 Bb7 9. Qd2 Rc8 10. O-O-O c5 11. dxc5 Nxc5 12. Nd5 Nb3+ {0-1 (12) Chabris,C (2080)-Romero Ruscalleda,J (2176) Chess.com INT 2022}) 8. Rxh3 {[%emt 0:00:43] The position is equal.} Nd7 {[%emt 0:00:25]} 9. Qd2 {[%emt 0:22:58]} c5 {[%emt 0:06:49]} 10. dxc5 {[%emt 0:05:53]} Nxc5 {[%emt 0:00:31]} 11. Bd4 {[%emt 0:08:38]} Bxd4 {[%emt 0:25:59]} 12. Qxd4 {[%emt 0:00:08]} e5 {[%emt 0:00:32]} 13. Qd2 {[%emt 0:09:10]} Nf6 {[%emt 0:00:39]} 14. f3 {[%emt 0:01:58]} (14. O-O-O {is more complex.} Ncxe4 15. Nxe4 Nxe4 16. Qd5) 14... Qc7 {[%emt 0:05:27]} 15. a4 {[%emt 0:07:55]} bxa4 {[%emt 0:07:18]} 16. Nxa4 {[%emt 0:00:40]} Nxa4 {[%emt 0:00:22]} 17. Rxa4 {[%emt 0:00:06]} O-O {[%emt 0:00:18]} 18. b3 {[%emt 0:03:42] [#]} (18. Rxa6 $2 Rxa6 19. Bxa6 Ra8 $19) (18. Bxa6 $2 Qc6 19. b3 Rxa6 $19) (18. Rh1 $11) 18... Rfd8 $1 $17 {[%emt 0:02:21]} 19. Bc4 {[%emt 0:00:05] [#]} (19. Rxa6 $2 Rxa6 20. Bxa6 d5 $19) (19. Bxa6 $2 d5 20. Qe2 Qb6 $19) (19. Rc4 $17 Qb6 20. Qc3) 19... d5 $1 $19 {[%emt 0:07:17]} 20. exd5 {[%emt 0:03:41] [#]} Nxd5 $1 {[%emt 0:00:20][%mdl 512]} 21. Bxd5 {[%emt 0:00:59]} Qc5 {[%emt 0:00:05]} 22. Qa5 $2 {[%emt 0:01:42][%mdl 8192] This costs White the game.} (22. Qf2 $17 Qxd5 23. Ra1) 22... Qg1+ {[%emt 0:03:50]} (22... Qxd5 23. Qxd5 Rxd5 24. g4 $11) (22... Rxd5 23. Qxc5 Rxc5 24. c4 $11) 23. Kd2 {[%emt 0:00:37]} (23. Ke2 Qxg2+ 24. Kd1 Rac8 $19) 23... Qxg2+ {[%emt 0:00:58]} 24. Kc1 {[%emt 0:00:15]} Rac8 {[%emt 0:01:56][%csl Gc8][%cal Rg2c2] Really sharp!} (24... Qxh3 25. Bxa8 Rxa8 26. Qxe5 $15) 25. Rc4 {[%emt 0:00:45][%cal Oa5b6] And now Qb6! would win.} Qxh3 {[%emt 0:01:04]} 26. Qxa6 {[%emt 0:00:14]} Qf5 {[%emt 0:02:47]} ({Inferior is} 26... Rxd5 27. Qxc8+ Qxc8 28. Rxc8+ Kg7 29. b4 $11) 27. Rxc8 {[%emt 0:01:55]} Rxc8 {[%emt 0:00:13][%csl Gc8][%cal Rf5c2][%mdl 4096] Endgame KQR-KQB} 28. Be4 {[%emt 0:00:05]} Qd7 {[%emt 0:02:39]} 29. Bxg6 {[%emt 0:03:11]} fxg6 {[%emt 0:00:36]} 30. Qxg6+ {[%emt 0:00:04]} Kf8 {[%emt 0:00:14]} 31. Qf6+ {[%emt 0:00:07]} Ke8 {[%emt 0:00:24] aiming for ...Qd4.} 32. Qxe5+ {[%emt 0:00:14]} Kd8 {[%emt 0:00:57]} ({Not} 32... Qe7 $2 33. Qxh5+ Kd7 34. Qg4+ Qe6 35. Qg7+ Kd6 36. Qd4+ Qd5 37. Qf6+ Kc7 38. Qg7+ Kb6 39. Qh6+ Kb7 40. Qe3 $19) 33. Qxh5 {[%emt 0:01:11]} Qd4 {[%emt 0:00:30] ( -> ...Qa1+)} 34. Qa5+ {[%emt 0:00:22]} Rc7 {[%emt 0:00:25]} 35. h5 {[%emt 0:00:20]} Qe3+ {[%emt 0:01:16]} ({Wrong is} 35... Kc8 $2 36. Qf5+ Kb8 37. Qb5+ Rb7 38. Qe8+ Ka7 39. h6 $19) 36. Qd2+ {[%emt 0:00:40]} (36. Kb2 $19 Qc5 37. Qxc5 Rxc5 38. c4) 36... Qxd2+ {[%emt 0:00:14] Black mates.} 37. Kxd2 {[%emt 0:00:03] KR-KP} Rh7 {[%emt 0:00:09]} 38. Ke3 {[%emt 0:01:32]} Rxh5 {[%emt 0:00:10] KR-K3P} 39. c4 {[%emt 0:00:33]} Rh1 {[%emt 0:00:18]} 40. b4 {[%emt 0:00:00]} Kd7 {[%emt 0:00:00]} 41. f4 {[%emt 0:02:22]} Kd6 {[%emt 0:07:04]} 42. Ke4 {[%emt 0:07:00]} Rb1 {[%emt 0:02:49]} 43. b5 {[%emt 0:02:30]} Rf1 {[%emt 0:02:08]} 44. f5 {[%emt 0:02:56]} Re1+ {[%emt 0:01:44]} 45. Kd4 {[%emt 0:00:58]} Re5 {[%emt 0:00:11]} 46. f6 {[%emt 0:00:53]} Rf5 {[%emt 0:00:14]} 47. f7 {[%emt 0:00:03]} Rf4+ {[%emt 0:00:10] Weighted Error Value: White=0.43/Black=0.07 (flawless)} 0-1

[Event "2nd Serbia Open Masters 2022"]
[Site "Novi Sad"]
[Date "2022.07.03"]
[Round "6.1"]
[White "Motylev, Alexander"]
[Black "Aryan Chopra"]
[Result "1/2-1/2"]
[ECO "B51"]
[WhiteElo "2633"]
[BlackElo "2609"]
[Annotator "TA"]
[PlyCount "41"]
[EventDate "2022.06.28"]
[EventType "swiss"]
[EventCountry "SRB"]
[SourceTitle "playchess.com"]
[Source "ChessBase"]
[SourceQuality "1"]
[TimeControl "40/5400+30:900+30"]

{[%evp 9,27,12,22,12,20,0,0,0,0,14,14,0,16,7,10,15,12,0,6,14]} 1. e4 {[%emt 0:02:29]} c5 {[%emt 0:00:05]} 2. Nf3 {[%emt 0:00:19]} d6 {[%emt 0:00:05]} 3. Bb5+ {[%emt 0:00:07]} Nd7 {[%emt 0:00:06]} 4. O-O {[%emt 0:00:22]} a6 {[%emt 0:00:16]} 5. Bd3 {[%emt 0:00:08]} Ngf6 {[%emt 0:00:05] The position is equal.} 6. c3 {[%emt 0:00:35] B51: Sicilian: Moscow Variation (3 Bb5+) without 3...Bd7.} b5 {[%emt 0:00:17]} 7. a4 {[%emt 0:00:18]} Bb7 {[%emt 0:00:58]} 8. Re1 {[%emt 0:00:46]} c4 {[%emt 0:00:21]} 9. Bc2 {[%emt 0:00:17]} e6 {[%emt 0:00:38]} 10. d4 {[%emt 0:00:51]} cxd3 {[%emt 0:00:18]} 11. Qxd3 {[%emt 0:00:08]} Nc5 {[%emt 0:00:32][%csl LRd3,LRe4]} 12. Qe2 {[%emt 0:00:07]} bxa4 {[%emt 0:00:25]} 13. Be3 {[%emt 0:04:35] [#] Bxc5 is the strong threat.} Nfd7 {[%emt 0:01:23]} ({Much less strong is} 13... Ncxe4 14. Bxa4+ Nd7 15. Na3 $14) 14. Bd4 {[%emt 0:04:32] [#] A rather calm draw.  Weighted Error Value: White=0.07 (flawless) /Black=0.02 (flawless)} {Predecessor:} Qc7 $146 15. Nbd2 e5 16. Bxc5 Nxc5 17. Qc4 Rc8 18. Bxa4+ Nxa4 19. Qxa4+ Qc6 20. Nc4 Qxa4 21. Rxa4 {0-1 (50) Kasimdzhanov,R (2662)-Donchenko,A (2652) Kirchweyhe 2021} 1/2-1/2

[Event "2nd Serbia Open Masters 2022"]
[Site "Novi Sad"]
[Date "2022.07.03"]
[Round "6.2"]
[White "Adhiban, B.."]
[Black "Ioannidis, Evgenios"]
[Result "0-1"]
[ECO "B96"]
[WhiteElo "2616"]
[BlackElo "2459"]
[Annotator "TA"]
[PlyCount "119"]
[EventDate "2022.06.28"]
[EventType "swiss"]
[EventCountry "SRB"]
[SourceTitle "playchess.com"]
[Source "ChessBase"]
[SourceQuality "1"]
[TimeControl "40/5400+30:900+30"]

{[%evp 17,119,42,32,28,15,0,6,1,0,0,33,40,40,45,16,16,22,12,25,0,115,110,82,97,65,21,22,0,0,0,27,26,11,15,14,8,7,0,89,83,81,0,50,0,61,6,26,36,40,43,135,106,100,31,66,-136,-155,-326,-316,-339,-72,-523,-541,-541,-517,-517,-520,-518,-510,-460,-494,-508,-512,-571,-539,-661,-657,-641,-612,-606,-514,-514,-513,-502,-485,-492,-485,-456,-460,-725,-715,-609,-510,-503,-468,-678,-658,-629,-622,-968,-955,-1455,-1212,-904]} 1. e4 {[%emt 0:00:04]} c5 {[%emt 0:00:23]} 2. Nf3 {[%emt 0:00:06]} d6 {[%emt 0:00:15]} 3. d4 {[%emt 0:00:08]} cxd4 {[%emt 0:00:09]} 4. Nxd4 {[%emt 0:00:02]} Nf6 {[%emt 0:00:11]} 5. Nc3 {[%emt 0:00:06]} a6 {[%emt 0:00:13]} 6. Bg5 {[%emt 0:00:06]} e6 {[%emt 0:00:46]} 7. f4 {[%emt 0:00:05]} Nbd7 {[%emt 0:00:31]} 8. Qe2 {[%emt 0:01:26]} Qc7 {[%emt 0:00:39]} 9. O-O-O {[%emt 0:00:18]} b5 {[%emt 0:00:46]} 10. a3 {[%emt 0:00:46] B96: Sicilian Najdorf: 6 Bg5 e6 7 f4, lines other than 7...Qb6 and 7...Be7.} Be7 $1 {[%emt 0:00:47][%mdl 4] now scores much better than the old 10...Bb7.} 11. Bxf6 {[%emt 0:02:37]} (11. g4 {keeps more tension.} h6 12. Bh4 Rb8 13. Bg2) 11... Bxf6 {[%emt 0:01:15] [#]} 12. Ndxb5 $1 {[%emt 0:01:35] The position is equal.} axb5 {[%emt 0:00:09]} 13. Nxb5 {[%emt 0:00:02]} Qb8 {[%emt 0:20:22]} (13... Qd8 $5 {[%cal Re8g8]}) 14. Nxd6+ {[%emt 0:01:04]} Kf8 {[%emt 0:00:44]} 15. e5 {[%emt 0:10:29][%mdl 1024] White has compensation.} Be7 {[%emt 0:00:06]} 16. h4 {[%emt 0:12:54] [#]} h5 $146 {[%emt 0:04:40]} ({Predecessor:} 16... Nc5 17. Rh3 Ba6 18. Qh5 g6 19. Qh6+ Kg8 20. Bxa6 Rxa6 21. b4 Bxd6 22. exd6 Nd7 {1-0 (41) Praggnanandhaa,R (2617)-Aditya,M (2453) chess24.com INT 2021}) 17. Rh3 {[%emt 0:12:55]} Ba6 {[%emt 0:00:38]} 18. Qf2 {[%emt 0:04:36] Black must now prevent Rb3.} Qb6 {[%emt 0:09:54]} (18... Bxf1 $11 19. Qxf1 Ra7) 19. Qxb6 $16 {[%emt 0:03:31]} Nxb6 {[%emt 0:00:05]} 20. Bxa6 {[%emt 0:06:17]} Rxa6 {[%emt 0:00:04]} 21. c4 {[%emt 0:11:44] Inhibits Nd5.} (21. Rc3 $5 {[%cal Rc3c6]}) 21... g6 {[%emt 0:02:02]} 22. c5 {[%emt 0:00:53]} Nd5 {[%emt 0:02:12]} 23. Rd4 {[%emt 0:00:06]} Kg7 {[%emt 0:02:01]} (23... Bxd6 $5 24. exd6 Ke8 $11) 24. b4 {[%emt 0:01:08]} Rha8 {[%emt 0:02:36]} 25. Kb2 {[%emt 0:01:58]} Ra4 {[%emt 0:02:15]} 26. Nb5 {[%emt 0:18:42]} Rb8 {[%emt 0:14:30]} 27. Nd6 {[%emt 0:00:08]} Nc7 {[%emt 0:02:53]} (27... Rba8 $11 {keeps the balance.}) 28. Kb3 {[%emt 0:02:16]} Rba8 {[%emt 0:00:53]} 29. Kb2 {[%emt 0:02:33]} (29. Nc4 $1 $16) 29... Rb8 {[%emt 0:05:06]} (29... Nd5 $11) 30. Kb3 {[%emt 0:04:29]} Rba8 {[%emt 0:00:05]} 31. Kc4 {[%emt 0:00:57]} (31. Nc4 $1 $14) 31... Rb8 {[%emt 0:02:45]} (31... Kf8 $5 {[%cal Ra4a3]}) 32. Rf3 {[%emt 0:01:35]} Na6 {[%emt 0:02:24][%cal Ra6b4]} 33. Rb3 {[%emt 0:00:39]} Bxh4 {[%emt 0:02:02]} ({Black should play} 33... Ra8 $14) 34. Ne4 $1 {[%emt 0:00:29]} Be1 {[%emt 0:03:32]} 35. c6 {[%emt 0:00:23]} (35. Rd6 $1 $16 {[%cal Rd6b6]}) 35... Rb6 {[%emt 0:01:48]} 36. Nd6 $2 {[%emt 0:00:43]} (36. Rd7 $1 $14 {stays ahead.} Bxb4 37. axb4 Nxb4 38. Kc5 (38. Nc5 Nxc6+ 39. Kc3 Rxb3+ 40. Kxb3 Rb4+ 41. Kc3 Kg8 $11)) 36... Nc7 $1 $17 {[%emt 0:03:30] Black keeps a firm grip on the game.} (36... Rxc6+ $2 37. Kb5 Nxb4 38. Kxa4 $18) 37. Kc5 {[%emt 0:00:22]} (37. Kd3 $17 {might work better.} Rxc6 38. b5 Rxd4+ 39. Kxd4) 37... Raa6 $1 $19 {[%emt 0:00:05][%csl Ga6][%cal Rb6c6]} 38. b5 {[%emt 0:00:38]} Nxb5 $2 {[%emt 0:16:14]} (38... Bf2 $19 {[%cal Oc7b5] ...Nxb5! is the strong threat.} 39. a4 Rb8) 39. Ne8+ $2 {[%emt 0:00:15][%mdl 8192]} (39. c7 $17 {nothing else works.} Bf2 40. Rxb5 Rc6+ 41. Kb4 Bxd4 42. a4) 39... Kf8 {[%emt 0:00:00][%cal Oe1f2] aiming for ...Bf2! Black is clearly winning.} 40. c7 {[%emt 0:00:00] [#]} Bf2 $1 {[%emt 0:00:00]} ({And not} 40... Rc6+ 41. Kxb5 Rab6+ 42. Ka4 Ra6+ 43. Kb5 Rab6+ 44. Ka4 Ra6+ 45. Kb5 $11) 41. Rxb5 {[%emt 0:08:28]} Rc6+ {[%emt 0:00:00][%mdl 64] Deflection} 42. Kb4 {[%emt 0:00:01]} Bxd4 {[%emt 0:00:00]} 43. Nf6 {[%emt 0:03:25] [#]} Bb6 $1 {[%emt 0:00:00]} 44. Nd7+ {[%emt 0:00:36]} Kg7 {[%emt 0:01:55]} 45. Nxb6 {[%emt 0:02:36]} Rxc7 {[%emt 0:00:07][%mdl 4096] Endgame Threatens to win with ...Rc2. KRR-KRN} ({Stronger than} 45... Raxb6 46. Rxb6 Rxb6+ 47. Kc5 $11) 46. a4 {[%emt 0:00:02]} Rc2 {[%emt 0:01:47]} 47. g3 {[%emt 0:00:04]} g5 {[%emt 0:00:57]} 48. fxg5 {[%emt 0:00:08]} Kg6 {[%emt 0:00:29]} 49. a5 {[%emt 0:00:23]} Kxg5 {[%emt 0:00:25]} 50. Nc4 {[%emt 0:00:25]} Ra7 {[%emt 0:00:06]} 51. Rb8 {[%emt 0:01:30]} Rc1 {[%emt 0:03:04] ( -> ...Rb1+)} 52. Rg8+ {[%emt 0:01:32]} Kf5 {[%emt 0:00:06] Hoping for ...Rb7+.} 53. Rh8 {[%emt 0:01:00]} (53. Rc8 $142 Rg1 54. Kb5) 53... Rb7+ {[%emt 0:03:43]} 54. Nb6 {[%emt 0:00:04]} Rh1 {[%emt 0:00:33]} 55. Kb5 {[%emt 0:02:59]} Rc7 {[%emt 0:00:35]} 56. Na8 {[%emt 0:00:33]} (56. Na4 $142 Rb1+ 57. Ka6) 56... Rb1+ {[%emt 0:03:04]} 57. Ka6 {[%emt 0:00:05]} Rc5 {[%emt 0:00:15] Strongly threatening ...Ra1.} 58. Nb6 {[%emt 0:00:46]} Ra1 {[%emt 0:00:39]} 59. Nd7 {[%emt 0:00:05]} Rd5 {[%emt 0:01:59]} 60. Rxh5+ {[%emt 0:00:46] Weighted Error Value: White=0.57/Black=0.29 (precise)} 0-1

[Event "2nd Serbia Open Masters 2022"]
[Site "Novi Sad"]
[Date "2022.07.03"]
[Round "6.3"]
[White "Ivic, Velimir"]
[Black "Can, Emre"]
[Result "1/2-1/2"]
[ECO "B90"]
[WhiteElo "2623"]
[BlackElo "2599"]
[Annotator "TA"]
[PlyCount "90"]
[EventDate "2022.06.28"]
[EventType "swiss"]
[EventCountry "SRB"]
[SourceTitle "playchess.com"]
[Source "ChessBase"]
[SourceQuality "1"]
[TimeControl "40/5400+30:900+30"]

{[%evp 19,90,28,34,25,45,23,39,42,28,31,34,43,20,40,38,13,64,12,22,0,0,14,45,0,35,22,26,-63,35,25,62,53,88,93,86,52,120,120,110,127,123,50,28,36,27,0,0,0,0,0,7,-34,-53,-72,-9,-11,-18,-20,-13,-17,-11,-9,-10,-24,-8,-68,0,0,0,0,0,0,0]} 1. e4 {[%emt 0:00:06]} c5 {[%emt 0:00:16]} 2. Nf3 {[%emt 0:00:05]} d6 {[%emt 0:00:15]} 3. d4 {[%emt 0:00:14]} cxd4 {[%emt 0:00:24]} 4. Nxd4 {[%emt 0:00:04]} Nf6 {[%emt 0:00:17]} 5. Nc3 {[%emt 0:00:06]} a6 {[%emt 0:00:17]} 6. Be3 {[%emt 0:00:29]} e5 {[%emt 0:00:22]} 7. Nb3 {[%emt 0:00:06]} Be6 {[%emt 0:00:29]} 8. f3 {[%emt 0:00:27]} Nbd7 {[%emt 0:00:24]} 9. g4 {[%emt 0:00:33][%cal Bg2g4,Bg4g5][%mdl 32]} Nb6 {[%emt 0:00:24]} 10. g5 {[%emt 0:00:37]} Nh5 {[%emt 0:00:18]} 11. Qd2 {[%emt 0:00:22] B90: Sicilian Najdorf: Unusual White 6th moves, 6 Be3 Ng4 and 6 Be3 e5.} Be7 {[%emt 0:00:22][%cal Oh7h6]} 12. O-O-O {[%emt 0:00:27]} O-O {[%emt 0:00:24]} 13. Kb1 {[%emt 0:01:11] White is slightly better.} Rc8 {[%emt 0:02:14]} 14. Rg1 {[%emt 0:03:41]} Qc7 {[%emt 0:01:31][%cal Od6d5]} 15. Qf2 {[%emt 0:03:08]} Nc4 {[%emt 0:00:11]} 16. Bxc4 {[%emt 0:00:05]} Qxc4 {[%emt 0:00:05]} 17. h4 {[%emt 0:03:42]} g6 {[%emt 0:00:15]} (17... f5 $11) 18. Qg2 {[%emt 0:01:51]} (18. f4 $1 $14) 18... Kh8 {[%emt 0:07:30] [#]} 19. Nd5 $146 {[%emt 0:13:35]} ({Predecessor:} 19. a3 f5 20. gxf6 Nxf6 21. Bg5 Qc7 22. Bxf6+ Rxf6 23. Nd5 Bxd5 24. Rxd5 Bf8 25. Rd3 {½-½ (32) Sileika,A (2119)-Artamonov,R (2003) ICCF email 2020}) 19... Bxd5 {[%emt 0:01:06]} 20. Rxd5 {[%emt 0:00:06]} f6 {[%emt 0:04:57]} (20... f5 $5 {[%cal Rf5e4]}) 21. gxf6 {[%emt 0:00:39]} Nxf6 {[%emt 0:00:48]} 22. Rd3 {[%emt 0:02:13]} Nh5 {[%emt 0:06:31][%cal Of8f3]} 23. Rh1 {[%emt 0:02:22] [#]} (23. Nc1 $11) 23... Qe6 {[%emt 0:03:10]} ({Black should try} 23... Rxf3 $1 $15 24. Rc3 Qxc3 25. bxc3 Rxe3) 24. Nc1 $14 {[%emt 0:04:28]} b5 {[%emt 0:08:21]} 25. a3 {[%emt 0:11:06]} Rcd8 {[%emt 0:22:26]} 26. Bh6 {[%emt 0:05:29]} Rf7 {[%emt 0:02:43]} 27. Ne2 {[%emt 0:04:28]} d5 {[%emt 0:05:55]} (27... a5 $14) 28. Rhd1 $1 $16 {[%emt 0:17:00][%cal Re4d5]} d4 {[%emt 0:01:06]} 29. c3 $1 {[%emt 0:00:26]} Bxh4 {[%emt 0:02:03][%cal Og6g5] [#]} 30. Bc1 {[%emt 0:03:50] Inhibits g5.} (30. Qh2 $1 $16 {[%cal Rh2h4]} Bf6 31. cxd4) 30... Bf6 $14 {[%emt 0:02:40]} 31. cxd4 {[%emt 0:00:32]} exd4 {[%emt 0:00:08]} 32. f4 {[%emt 0:03:34]} Qc6 {[%emt 0:08:06]} 33. Nxd4 {[%emt 0:05:17]} Rxd4 {[%emt 0:02:14]} 34. Rxd4 {[%emt 0:00:11]} Nxf4 {[%emt 0:01:14]} 35. Qf3 {[%emt 0:06:19]} Bxd4 {[%emt 0:00:44]} 36. Rxd4 {[%emt 0:00:05] [#]} g5 {[%emt 0:03:54]} (36... Qc7 $1 $17 {aiming for ...Ne6.} 37. Rd2 (37. e5 $2 Ne6 $19) 37... h6) 37. Rd8+ $11 {[%emt 0:01:55]} Kg7 {[%emt 0:00:06] White must now prevent ...Ne6.} 38. Bd2 {[%emt 0:03:45]} Re7 {[%emt 0:03:06]} 39. Qg4 {[%emt 0:04:49]} ({Much worse is} 39. Bxf4 Qf6 40. Ka1 (40. Qb3 Qxf4 41. Qg8+ Kh6 $17) 40... Qxf4 41. Qc3+ Qe5 $17) 39... Qxe4+ {[%emt 0:02:27]} 40. Ka1 $132 {[%emt 0:00:00][%mdl 2048] White puts up resistance} h6 {[%emt 0:00:00] Threatening ...Ng6.} 41. Bc3+ {[%emt 0:03:30]} Kf7 {[%emt 0:02:04] Black wants to play ...Qh1+.} 42. Qc8 {[%emt 0:01:10]} ({Better is} 42. Rd6 $11 Re6 43. Rd4) 42... Re6 {[%emt 0:15:49]} ({Don't play} 42... Qe6 43. Rf8+ Kg6 44. Rf6+ Qxf6 45. Bxf6 Kxf6 46. Qf8+ Rf7 47. Qxh6+ Ng6 48. Qh3 $11) (42... Kg6 $15 43. Qg4 Qe6) 43. Rg8 {[%emt 0:07:59][%csl Gg8][%cal Rc8f8] The position is equal.} Qh1+ {[%emt 0:01:48]} 44. Ka2 {[%emt 0:00:04][%csl Gg8][%cal Rc8f8]} Qd5+ {[%emt 0:00:21]} 45. Ka1 {[%emt 0:00:05][%csl Gc3][%cal Rg8g7] The board is on fire.} Qh1+ {[%emt 0:01:03] Weighted Error Value: White=0.19 (very precise) /Black=0.20 (precise)} 1/2-1/2